bitfinex-derivatives/quotes_ETHF0:USTF0_20251031
["timestamp","ask_amount","ask_price","bid_price","bid_amount"]
[1761897000654,2.14366419,3827.0,3826.9,1.39465454]
[1761897000950,0.08386419,3827.0,3826.9,5.13365454]
[1761897001149,0.65046419,3827.0,3826.9,5.13365454]
[1761897001348,1.99436419,3827.0,3826.9,5.13365454]
[1761897003250,1.91264707,3827.0,3826.9,5.13365454]
[1761897003752,1.12204707,3827.0,3826.9,5.13365454]
[1761897004053,0.00214707,3827.0,3826.9,5.13365454]
[1761897005443,0.56874707,3827.0,3826.9,5.13365454]
[1761897005643,0.00214707,3827.0,3826.9,5.13365454]
[1761897006553,0.56874707,3827.0,3826.9,5.13365454]
[1761897006854,0.00214707,3827.0,3826.9,5.13365454]
[1761897007953,1.91264707,3827.0,3826.9,5.13365454]
[1761897008752,0.56874707,3827.0,3826.9,5.13365454]
[1761897011550,1.85024707,3827.0,3826.9,5.13365454]
[1761897011745,0.56874707,3827.0,3826.9,5.13365454]
[1761897012859,1.34614707,3827.0,3826.9,5.13365454]
[1761897013355,2.13794707,3827.0,3826.9,0.00205454]
[1761897015759,5.59774707,3827.0,3826.9,0.00205454]
[1761897016056,1.8199,3826.0,3825.9,1.7636]
[1761897016260,0.5384,3826.3,3826.2,1.7636]
[1761897016454,0.5041,3825.8,3825.2,3.2078]
[1761897016658,1.8199,3825.8,3825.7,0.999]
[1761897016852,1.8199,3825.8,3825.7,1.00155105]
[1761897017054,1.8199,3825.8,3825.7,1.76525105]
[1761897017367,1.2222,3826.1,3826.0,1.7662]
[1761897017563,1.7171,3826.1,3826.0,1.7662]
[1761897018259,1.7171,3826.1,3826.0,1.2693]
[1761897018463,1.7171,3826.1,3826.0,4.974]
[1761897018660,1.7171,3826.1,3826.0,1.7662]
[1761897018860,1.7171,3826.1,3826.0,4.974]
[1761897020254,1.9726,3826.0,3825.9,0.42344855]
[1761897020758,2.05433463,3826.0,3825.9,0.42344855]
[1761897021356,2.05433463,3826.0,3825.7,0.00255105]
[1761897021357,1.7171,3825.8,3825.7,0.00255105]
[1761897021663,2.36377028,3825.8,3825.7,0.00255105]
[1761897022869,2.36377028,3825.8,3825.7,1.27185105]
[1761897023766,11.50877028,3825.8,3825.7,1.76875105]
[1761897024563,11.50877028,3825.8,3825.7,0.00255105]
[1761897029468,1.79883463,3825.8,3825.7,1.76875105]
[1761897029662,10.94083463,3825.8,3825.7,0.50815105]
[1761897029970,10.94083463,3825.8,3825.7,0.00255105]
[1761897032769,0.08173463,3825.8,3825.7,1.76875105]
[1761897033064,1.7171,3826.4,3826.3,1.7662]
[1761897033265,8.95383309,3826.4,3826.3,1.7662]
[1761897033465,1.7171,3826.2,3826.1,4.4771]
[1761897033665,1.79882635,3826.2,3826.1,4.974]
[1761897035673,1.79882635,3826.2,3826.1,5.45255782]
[1761897037071,1.79882635,3826.2,3826.1,2.24475782]
[1761897037274,1.79882635,3826.2,3826.1,0.47855782]
[1761897037474,1.7171,3825.8,3825.7,3.21035105]
[1761897037674,1.79882635,3825.8,3825.7,3.21035105]
[1761897038172,1.79882635,3825.8,3825.7,4.47965105]
[1761897039168,0.9708,3825.5,3825.4,1.7540617]
[1761897039375,1.79883746,3825.5,3825.4,1.7540617]
[1761897039679,0.55763746,3825.5,3825.4,2.2509617]
[1761897040273,1.79883746,3825.5,3825.4,2.25415568]
[1761897040782,11.13323746,3825.5,3825.4,0.99355568]
[1761897041379,11.13323746,3825.5,3825.4,0.48795568]
[1761897041578,11.71790199,3825.5,3825.4,0.48795568]
[1761897042881,11.71790199,3825.5,3825.4,1.70275568]
[1761897043183,11.71790199,3825.5,3825.4,2.15295568]
[1761897043780,11.51850199,3825.5,3825.4,2.15295568]
[1761897048888,11.81620199,3825.5,3825.4,2.15295568]
[1761897049290,12.91965962,3825.5,3825.4,2.15295568]
[1761897051090,12.91965962,3825.5,3825.4,1.70275568]
[1761897051293,12.62195962,3825.5,3825.4,2.15295568]
[1761897052592,12.91965962,3825.5,3825.4,0.97295568]
[1761897052786,12.91965962,3825.5,3825.4,0.48795568]
[1761897052988,12.91965962,3825.5,3825.4,1.21775568]
[1761897053188,12.91965962,3825.5,3825.4,1.70275568]
[1761897053591,11.51850199,3825.5,3825.4,2.15295568]
[1761897053795,11.51850199,3825.5,3825.4,1.70275568]
[1761897053796,12.91965962,3825.5,3825.4,1.70275568]
[1761897054990,12.91965962,3825.5,3825.4,0.48795568]
[1761897056194,12.91965962,3825.5,3825.4,0.00319398]
[1761897058091,1.7404,3824.4,3824.3,4.4226]
[1761897058287,12.62625962,3824.4,3824.3,3.6928]
[1761897058690,12.62625962,3824.4,3824.3,4.94012395]
[1761897059095,12.62625962,3824.4,3824.3,4.94325769]
[1761897059292,12.04159509,3824.4,3824.3,4.94325769]
[1761897060294,1.10345763,3824.7,3824.3,5.39345769]
[1761897060493,1.2454,3825.0,3824.9,1.665]
[1761897060697,8.3216502,3825.0,3824.9,1.2148]
[1761897060896,8.3216502,3825.0,3824.5,0.3066]
[1761897060897,1.2454,3824.8,3824.7,4.143]
[1761897061203,2.92561602,3824.8,3824.7,3.6928]
[1761897061397,1.82215839,3824.8,3824.7,3.6928]
[1761897062394,1.82215839,3824.8,3824.7,4.8728]
[1761897062596,0.5096,3824.8,3824.7,4.8728]
[1761897062805,10.3784,3824.8,3824.7,4.8728]
[1761897063193,10.8734,3824.8,3824.7,4.8728]
[1761897063898,10.1376,3824.8,3824.7,4.8728]
[1761897064098,9.6426,3824.8,3824.7,4.8728]
[1761897064495,0.5096,3824.8,3824.7,4.8728]
[1761897064695,0.5096,3825.1,3825.0,1.9716]
[1761897064904,0.0817542,3825.1,3825.0,1.9716]
[1761897065198,0.5096,3825.1,3825.0,1.9716]
[1761897065402,9.6406,3825.3,3825.2,1.665]
[1761897065605,10.95315169,3825.3,3825.2,1.665]
[1761897066008,10.8714,3825.3,3825.2,1.665]
[1761897066200,10.95314611,3825.3,3825.2,1.665]
[1761897066806,10.95314611,3825.3,3825.2,1.2148]
[1761897067506,1.7404,3825.0,3824.9,1.665]
[1761897067906,0.5096,3825.0,3824.9,1.665]
[1761897068704,0.5096,3825.0,3824.9,4.8728]
[1761897068902,1.2454,3825.0,3824.9,4.8728]
[1761897069104,1.7404,3825.0,3824.9,4.8728]
[1761897069411,2.0381,3825.0,3824.9,3.9376]
[1761897069611,2.72808349,3825.0,3824.9,3.9376]
[1761897069909,2.72808349,3825.0,3824.9,4.4226]
[1761897070110,4.4443044,3825.0,3824.9,3.2078]
[1761897071506,1.5235,3824.7,3824.6,1.5086]
[1761897071705,10.6525,3824.7,3824.6,0.4744]
[1761897071906,1.5235,3824.6,3824.5,3.2078]
[1761897072104,1.5235,3824.6,3824.5,4.2962]
[1761897072506,0.9038,3824.6,3824.5,5.008]
[1761897073408,0.4595,3825.0,3824.9,1.0884]
[1761897073710,10.27762048,3825.0,3824.9,1.5086]
[1761897074111,10.28895232,3825.0,3824.9,1.5086]
[1761897074313,11.34167158,3825.0,3824.9,1.5086]
[1761897075515,10.6515,3825.0,3824.9,1.5086]
[1761897075812,1.5235,3824.7,3824.6,1.5086]
[1761897076110,1.5235,3824.6,3824.5,3.2078]
[1761897076413,1.5235,3824.6,3824.5,4.9578]
[1761897077611,0.9038,3824.6,3824.5,4.9578]
[1761897077807,0.4011,3824.9,3824.8,1.5054]
[1761897078013,9.6078549,3824.9,3824.8,1.5054]
[1761897078312,10.21623518,3824.9,3824.8,1.5054]
[1761897078613,9.5261,3824.9,3824.8,1.5054]
[1761897079009,9.5231,3824.9,3824.8,1.5054]
[1761897079211,0.4011,3824.9,3824.8,1.5054]
[1761897079409,9.5241,3824.9,3824.8,1.5054]
[1761897079616,9.5241,3824.9,3824.5,3.472]
[1761897079617,1.4354,3825.5,3825.4,0.8718]
[1761897079811,11.24867517,3825.5,3825.4,0.8718]
[1761897080208,11.24867517,3825.5,3825.4,1.5054]
[1761897081314,12.35212372,3825.5,3825.4,1.5054]
[1761897081509,12.35212372,3825.5,3825.1,3.2078]
[1761897081510,12.40182372,3825.5,3825.1,3.2078]
[1761897081709,2.53884855,3825.2,3825.1,4.7132]
[1761897081910,3.22912372,3825.2,3825.1,4.7132]
[1761897083109,12.35112372,3825.2,3825.1,3.2078]
[1761897083517,12.35112372,3825.2,3825.1,4.274]
[1761897083720,2.12567517,3825.2,3825.1,4.7132]
[1761897083918,12.34812372,3825.2,3825.1,4.7132]
[1761897084909,12.34812372,3825.2,3825.1,3.2078]
[1761897089120,0.836,3824.9,3824.8,4.274]
[1761897089324,12.35212372,3824.9,3824.8,4.274]
[1761897090126,12.35212372,3824.9,3824.8,4.7132]
[1761897091521,11.24867517,3824.9,3824.8,4.7132]
[1761897094025,0.69027517,3824.9,3824.8,4.7132]
[1761897094325,10.20737517,3824.9,3824.8,4.7132]
[1761897094527,11.24167517,3824.9,3824.8,4.7132]
[1761897094726,11.24167517,3824.9,3824.8,1.5054]
[1761897096324,11.24067517,3824.9,3824.8,1.5054]
[1761897096728,11.24067517,3824.9,3824.8,1.0662]
[1761897097519,11.24067517,3824.9,3824.8,1.5054]
[1761897098229,10.64127517,3824.9,3824.8,1.5054]
[1761897099425,11.24067517,3824.9,3824.8,1.5054]
[1761897100026,11.24067517,3824.9,3824.8,1.0662]
[1761897100227,11.24067517,3824.9,3824.8,1.5054]
[1761897100728,9.80527517,3824.9,3824.8,1.5054]
[1761897100932,0.69027517,3824.9,3824.8,1.5054]
[1761897103441,0.69027768,3824.9,3824.8,1.5054]
[1761897103734,1.11647768,3824.9,3824.8,1.5054]
[1761897104736,1.11647768,3824.9,3824.8,4.7132]
[1761897109144,0.69027768,3824.9,3824.8,4.7132]
[1761897109346,1.11647768,3824.9,3824.8,4.7132]
[1761897109939,0.69027768,3824.9,3824.8,4.7132]
[1761897113533,0.08174968,3824.9,3824.8,6.06786504]
[1761897113939,0.08174968,3824.9,3824.8,4.7132]
[1761897114240,0.93769108,3825.6,3824.8,4.7132]
[1761897114241,2.34179108,3825.6,3825.5,1.4144]
[1761897114432,3.04004123,3825.6,3825.5,1.4144]
[1761897115838,3.04004123,3825.6,3825.0,0.2396]
[1761897115839,4.39470627,3825.6,3825.0,0.2396]
[1761897116038,1.4041,3824.8,3824.7,1.037]
[1761897116238,3.45701519,3824.8,3824.7,1.037]
[1761897116639,3.45701519,3824.8,3824.5,3.2078]
[1761897116640,1.4041,3824.6,3824.5,4.2448]
[1761897116834,2.10235015,3824.6,3824.5,4.2448]
[1761897118740,2.10236461,3824.6,3824.5,4.2448]
[1761897119845,2.10236461,3824.6,3824.5,1.037]
[1761897120545,0.69826461,3824.6,3824.5,1.654]
[1761897121348,0.08175778,3824.6,3824.5,1.654]
[1761897121846,1.36389108,3825.3,3825.2,0.4319]
[1761897122050,0.61607537,3825.3,3825.2,1.4144]
[1761897122640,1.62187537,3825.3,3825.2,1.4144]
[1761897123249,1.04227537,3825.3,3825.2,1.4144]
[1761897123553,2.02017537,3825.3,3825.2,1.4144]
[1761897124046,2.02017537,3825.3,3825.2,1.037]
[1761897124351,2.02017537,3825.3,3825.2,1.4144]
[1761897127656,2.02017537,3825.3,3825.2,1.037]
[1761897127855,2.02017537,3825.3,3825.2,0.4319]
[1761897129555,1.4041,3825.0,3824.9,1.037]
[1761897129752,2.02017537,3825.0,3824.9,1.037]
[1761897130062,3.37484041,3825.0,3824.9,1.4144]
[1761897131955,1.04227537,3825.0,3824.9,1.4144]
[1761897132159,0.61607537,3825.0,3824.9,1.4144]
[1761897135062,9.108,3825.4,3825.3,1.2995]
[1761897135364,10.19206125,3825.4,3825.3,1.2995]
[1761897135865,11.06036125,3825.4,3825.3,1.2995]
[1761897136162,12.41502629,3825.4,3825.3,1.2995]
[1761897136364,12.41502629,3825.4,3825.3,0.9476]
[1761897136555,1.2684,3825.2,3825.1,4.1554]
[1761897136760,1.96546125,3825.2,3825.1,4.1554]
[1761897136964,0.6935,3824.7,3824.6,44.0078]
[1761897137265,1.231,3824.9,3824.8,0.7066]
[1761897137463,1.92810327,3824.9,3824.8,1.2368]
[1761897138465,1.92810327,3824.9,3824.8,0.8739]
[1761897138763,1.231,3824.7,3824.6,44.538]
[1761897138958,1.92810327,3824.7,3824.6,44.538]
[1761897139354,1.92810327,3824.7,3824.6,3.2078]
[1761897139664,1.92810327,3824.7,3824.6,4.0817]
[1761897139864,1.92810327,3824.7,3824.6,4.4446]
[1761897141366,1.04590327,3824.7,3824.6,4.4446]
[1761897141565,0.69710327,3824.7,3824.6,4.4446]
[1761897141863,0.6935,3825.1,3825.0,0.8739]
[1761897142064,1.39042952,3825.1,3825.0,0.3437]
[1761897142258,1.39042952,3825.1,3825.0,0.8739]
[1761897142463,1.92792952,3825.1,3825.0,0.8739]
[1761897142662,1.92792952,3825.1,3825.0,1.2368]
[1761897143367,1.92792952,3825.1,3825.0,1.4534]
[1761897144268,1.92792952,3825.1,3825.0,1.2368]
[1761897145072,1.92792952,3825.1,3825.0,0.8739]
[1761897145564,1.04572952,3825.1,3825.0,1.4534]
[1761897145769,2.40039456,3825.1,3825.0,1.4534]
[1761897145966,3.28259456,3825.1,3825.0,1.4534]
[1761897146166,2.40039456,3825.1,3825.0,1.4534]
[1761897146369,0.5375,3824.9,3824.8,0.5302]
[1761897146564,0.6935,3824.6,3824.5,0.5603]
[1761897146765,2.74509456,3824.6,3824.5,0.9232]
[1761897147064,3.28259456,3824.6,3824.5,0.9232]
[1761897147271,3.28259456,3824.6,3824.5,1.2368]
[1761897147773,6.49039456,3824.6,3824.5,1.2368]
[1761897147971,6.49039456,3824.6,3824.5,0.8739]
[1761897149969,3.28259456,3824.6,3824.5,1.2368]
[1761897150667,3.28259456,3824.6,3824.5,1.4534]
[1761897150974,2.74509456,3824.6,3824.5,1.4534]
[1761897151176,3.28259456,3824.6,3824.5,1.4534]
[1761897151376,3.03201199,3824.6,3824.5,1.4534]
[1761897151675,3.03201199,3824.6,3824.5,1.2368]
[1761897152474,1.92792952,3824.6,3824.5,1.4534]
[1761897152678,3.03201199,3824.6,3824.5,1.4534]
[1761897155383,1.92792952,3824.6,3824.5,1.4534]
[1761897155686,1.84617685,3824.6,3824.5,1.4534]
[1761897156282,1.92793646,3824.6,3824.5,1.4534]
[1761897159185,1.04573646,3824.6,3824.5,1.4534]
[1761897159485,1.92793646,3824.6,3824.5,1.4534]
[1761897165784,0.6437,3824.4,3824.3,0.00313374]
[1761897166090,1.1134,3823.9,3823.8,1.172]
[1761897166288,2.21748247,3823.9,3823.8,1.172]
[1761897166586,2.21748247,3823.9,3823.8,41.972]
[1761897167089,2.22033191,3823.9,3823.8,41.97509005]
[1761897167287,0.00284944,3823.9,3823.8,41.97509005]
[1761897168588,1.73089432,3823.9,3823.8,41.97509005]
[1761897168788,1.81266831,3823.9,3823.8,41.97509005]
[1761897169393,1.81266831,3823.9,3823.8,40.80309005]
[1761897169692,1.81266831,3823.9,3823.8,0.48119005]
[1761897169893,1.81266831,3823.9,3823.8,0.84439005]
[1761897170994,1.81267112,3823.9,3823.8,0.84439005]
[1761897171594,1.81267112,3823.9,3823.8,0.00309005]
[1761897172490,1.81267112,3823.9,3823.8,0.48119005]
[1761897173196,1.81267112,3823.9,3823.8,0.84439005]
[1761897173894,1.81267112,3823.9,3823.8,0.00309005]
[1761897174096,1.1134,3823.4,3823.3,0.4781]
[1761897174400,1.1134,3823.4,3823.3,0.8413]
[1761897174695,1.1134,3823.4,3823.3,1.172]
[1761897175196,1.1134,3823.4,3823.3,1.17393452]
[1761897176396,0.3316,3822.6,3822.5,0.4781]
[1761897176597,1.90538247,3822.6,3822.5,1.3763]
[1761897176792,1.10408247,3822.6,3822.5,1.3763]
[1761897177399,1.10408247,3822.6,3822.5,1.3790619]
[1761897177697,0.3316,3822.6,3822.5,0.9009619]
[1761897177898,0.3316,3822.8,3822.7,0.6939]
[1761897178094,1.10408247,3822.8,3822.7,3.9017]
[1761897178300,1.41618247,3822.8,3822.7,0.8413]
[1761897178500,0.6437,3822.6,3822.5,0.8440619]
[1761897179001,1.1134,3822.6,3822.5,0.8440619]
[1761897179301,1.1134,3822.6,3822.5,1.1747619]
[1761897179496,0.103,3823.0,3822.9,0.3632]
[1761897179497,0.8013,3823.0,3822.9,0.3632]
[1761897179701,3.8515,3823.6,3823.5,0.8088]
[1761897180004,0.3316,3823.2,3823.1,1.172]
[1761897180207,5.42528247,3823.6,3823.5,1.172]
[1761897180399,0.3316,3823.2,3823.1,40.8]
[1761897181000,0.3316,3823.5,3823.4,1.172]
[1761897181200,0.8013,3823.7,3823.6,1.172]
[1761897181403,2.83299614,3823.7,3823.6,1.172]
[1761897181603,0.7818,3823.3,3823.2,0.8413]
[1761897181907,2.21748247,3823.3,3823.2,0.8413]
[1761897182503,2.21748247,3823.3,3823.2,1.172]
[1761897183211,1.74778247,3823.3,3823.2,1.172]
[1761897183511,2.21748247,3823.3,3823.2,1.172]
[1761897185009,1.74778247,3823.3,3823.2,1.172]
[1761897185204,1.10408247,3823.3,3823.2,1.172]
[1761897187111,4.3212,3823.8,3823.7,0.6939]
[1761897187413,6.04069773,3823.8,3823.7,1.172]
[1761897189217,0.61541526,3823.8,3823.7,1.172]
[1761897189412,0.33444944,3823.9,3823.8,1.172]
[1761897189617,0.00284944,3823.9,3823.8,1.172]
[1761897189915,0.33444944,3823.9,3823.8,1.172]
[1761897190317,0.00284944,3823.9,3823.8,1.172]
[1761897191120,0.33444944,3823.9,3823.8,1.172]
[1761897191315,0.00284944,3823.9,3823.8,1.172]
[1761897191714,0.00284944,3823.9,3823.8,41.972]
[1761897191914,0.00284944,3823.9,3823.8,42.30158]
[1761897192115,0.00284944,3823.9,3823.8,43.07608247]
[1761897192618,0.00284944,3823.9,3823.8,41.972]
[1761897193617,0.00284944,3823.9,3823.8,1.172]
[1761897193820,0.6424,3823.6,3823.5,0.8556]
[1761897194018,0.00284944,3823.9,3823.8,0.6513]
[1761897194518,0.00284944,3823.9,3823.8,1.1412]
[1761897194822,0.00284944,3823.9,3823.8,1.47078]
[1761897195320,0.00284944,3823.9,3823.8,1.1412]
[1761897197117,3.2078,3824.8,3824.7,1.1442]
[1761897197118,4.0495,3824.8,3824.7,1.1442]
[1761897197323,4.22852604,3824.8,3824.7,1.1442]
[1761897197725,5.06862604,3824.8,3824.7,1.1442]
[1761897198124,6.17466394,3824.8,3824.7,1.1442]
[1761897199220,14.11574641,3824.8,3824.1,0.8045]
[1761897199420,1.74828247,3824.2,3823.8,41.2831]
[1761897199728,1.74828247,3823.9,3823.8,40.8]
[1761897200120,1.74828247,3823.9,3823.8,41.2831]
[1761897201221,0.6442,3823.9,3823.8,41.2831]
[1761897201424,0.3229,3823.9,3823.8,41.2831]
[1761897201621,2.26708247,3823.9,3823.8,41.2831]
[1761897203920,2.26708247,3823.9,3823.8,1.1442]
[1761897208132,1.74828247,3823.9,3823.8,1.1442]
[1761897208829,0.93769108,3824.7,3824.6,0.4831]
[1761897209024,0.93769108,3824.7,3824.6,1.1442]
[1761897209025,2.26708247,3824.7,3824.6,1.1442]
[1761897209225,2.26708247,3824.7,3824.6,41.9442]
[1761897210426,1.74828247,3824.7,3824.6,41.9442]
[1761897211026,2.26708247,3824.7,3824.6,41.9442]
[1761897211425,2.26708247,3824.7,3824.6,1.1442]
[1761897211830,2.26708247,3824.7,3824.3,0.8045]
[1761897211831,1.163,3824.4,3824.3,0.8045]
[1761897212029,2.26708247,3824.4,3824.3,0.8045]
[1761897212827,2.26708247,3824.4,3824.3,1.1442]
[1761897213329,1.163,3824.4,3824.3,1.1442]
[1761897214531,1.163,3824.4,3824.3,0.8045]
[1761897214831,1.163,3824.4,3824.3,1.1442]
[1761897215727,0.6442,3824.4,3824.3,1.1442]
[1761897217726,1.163,3824.4,3824.3,1.1442]
[1761897219233,0.6442,3824.4,3824.3,1.1442]
[1761897220526,0.6442,3824.4,3824.2,40.8]
[1761897220527,0.00195543,3824.8,3824.7,1.1442]
[1761897220822,0.94051249,3824.8,3824.7,1.1442]
[1761897221133,1.02227242,3824.8,3824.7,1.1442]
[1761897221432,1.49557242,3824.8,3824.7,1.1442]
[1761897221629,1.80857242,3824.8,3824.7,1.1442]
[1761897224334,1.33527242,3824.8,3824.7,1.1442]
[1761897225136,1.80857242,3824.8,3824.7,1.1442]
[1761897225937,1.02227242,3824.8,3824.7,1.1442]
[1761897226132,0.69937242,3824.8,3824.7,1.1442]
[1761897227129,1.03377242,3824.8,3824.7,1.1442]
[1761897228735,1.50707242,3824.8,3824.7,1.1442]
[1761897229130,1.82007242,3824.8,3824.7,1.1442]
[1761897230235,1.22852192,3827.8,3825.5,8.23598]
[1761897230533,1.22852192,3827.8,3825.1,8.23675]
[1761897230534,0.4733,3827.8,3826.9,1.85788815]
[1761897230735,0.8077,3827.7,3827.6,1.4061613]
[1761897230936,0.4733,3827.7,3827.6,8.8839613]
[1761897231236,0.81093553,3827.7,3827.6,54.70264994]
[1761897231436,0.81093553,3827.7,3827.6,54.23129338]
[1761897232032,0.47653553,3827.7,3827.6,54.23129338]
[1761897232228,0.81093553,3827.7,3827.6,44.94529338]
[1761897232434,1.12393553,3827.7,3827.6,53.29148864]
[1761897233239,0.09215418,3828.0,3827.9,0.121]
[1761897233439,0.09215418,3828.0,3827.9,10.75593578]
[1761897234134,0.1919,3828.5,3827.9,10.75593578]
[1761897234340,0.3344,3828.3,3828.2,3.6058]
[1761897234533,0.1919,3828.5,3828.2,3.6058]
[1761897234534,0.5263,3828.5,3828.4,0.398]
[1761897235134,0.6474,3828.3,3828.2,3.4068]
[1761897235336,1.12353672,3828.3,3828.2,12.6868]
[1761897235742,1.12353672,3828.3,3828.2,3.2078]
[1761897238051,1.12353672,3828.3,3828.2,3.4068]
[1761897238346,0.00283672,3828.3,3828.2,3.8048]
[1761897238552,0.81053672,3828.3,3828.2,3.6058]
[1761897238847,1.12353672,3828.3,3828.2,3.6058]
[1761897241749,0.81053672,3828.3,3828.2,3.8048]
[1761897241953,0.81053672,3828.3,3828.2,3.6058]
[1761897242146,0.1919,3828.5,3828.2,3.8048]
[1761897242349,0.1919,3829.0,3828.9,0.597]
[1761897242551,0.1919,3829.0,3828.9,3.8048]
[1761897242851,0.6652,3829.0,3828.9,3.8048]
[1761897243055,0.8393,3829.5,3829.4,0.199]
[1761897243258,0.84151206,3829.5,3829.4,0.199]
[1761897243652,1.31481206,3829.5,3829.4,0.199]
[1761897243853,1.1207,3829.4,3829.3,3.2078]
[1761897244256,1.1207,3829.4,3829.3,3.4068]
[1761897244553,1.1207,3829.4,3829.3,3.2078]
[1761897244956,1.1207,3829.4,3829.3,3.4068]
[1761897245455,1.1207,3829.4,3829.3,3.6058]
[1761897246047,1.1207,3829.4,3829.3,3.2078]
[1761897246955,1.1207,3828.9,3828.8,3.2078]
[1761897247154,2.47563578,3828.9,3828.8,3.2078]
[1761897247353,1.1207,3828.9,3828.8,3.2078]
[1761897248960,0.6474,3828.9,3828.2,40.8]
[1761897249164,0.6474,3828.9,3828.8,3.2078]
[1761897249663,1.1207,3828.9,3828.8,3.2078]
[1761897252962,0.8077,3828.9,3828.8,4.0019]
[1761897253163,0.8077,3828.9,3828.8,4.7227]
[1761897253164,0.4733,3828.9,3828.8,4.7227]
[1761897253668,0.7921,3828.9,3828.8,4.7227]
[1761897254068,1.0802,3829.2,3829.1,1.5149]
[1761897254966,2.93443578,3829.2,3829.1,0.3161]
[1761897255966,2.93443578,3829.2,3829.1,0.7941]
[1761897256971,2.93443578,3829.2,3829.1,4.0019]
[1761897257370,3.0161041,3829.2,3829.1,4.0019]
[1761897258774,3.0161041,3829.2,3829.1,3.5239]
[1761897260374,3.0161041,3829.2,3829.1,4.21889572]
[1761897261169,1.66116832,3829.2,3829.1,4.70669572]
[1761897263272,1.66116832,3829.2,3829.1,5.43079572]
[1761897263982,1.66116832,3829.2,3829.1,4.70669572]
[1761897265879,1.66116832,3829.2,3829.1,1.49889572]
[1761897266178,1.66116832,3829.2,3829.1,4.70669572]
[1761897266380,1.66116832,3829.2,3829.1,4.0117]
[1761897268775,1.83976832,3829.2,3829.1,4.0117]
[1761897269279,1.83976832,3829.2,3829.1,4.94650474]
[1761897269485,1.83976832,3829.2,3829.1,4.14260474]
[1761897269679,1.83976832,3829.2,3829.1,3.2078]
[1761897270182,1.9979,3829.0,3828.9,0.93480474]
[1761897270483,2.07956832,3829.0,3828.9,0.93480474]
[1761897270876,2.07956832,3829.0,3828.9,1.42590474]
[1761897271179,2.07956832,3829.0,3828.9,0.93480474]
[1761897271971,1.7099,3828.9,3828.8,1.42590474]
[1761897272175,1.79156832,3828.9,3828.8,0.4911]
[1761897273283,1.79156832,3828.9,3828.8,1.43113723]
[1761897274381,1.79156832,3828.9,3828.8,0.4911]
[1761897275078,1.79156832,3828.9,3828.8,0.9789]
[1761897275278,1.79156832,3828.9,3828.8,1.703]
[1761897275782,1.79156832,3828.9,3828.8,0.9789]
[1761897276583,1.7099,3828.8,3828.7,3.2078]
[1761897276784,1.79156832,3828.8,3828.7,3.6989]
[1761897276985,1.79156832,3828.8,3828.7,4.1867]
[1761897277581,1.79156832,3828.8,3828.7,4.9108]
[1761897277777,0.08166832,3828.8,3828.7,4.9108]
[1761897277978,1.81461268,3829.0,3828.9,1.703]
[1761897278178,2.41188865,3829.0,3828.9,2.64304481]
[1761897278379,3.18098865,3829.0,3828.9,1.703]
[1761897278685,3.18098865,3829.0,3828.9,0.9789]
[1761897279284,0.79487597,3829.0,3828.9,1.703]
[1761897279585,0.79487597,3829.0,3828.9,2.64304481]
[1761897281582,1.31047597,3829.0,3828.9,2.64304481]
[1761897282087,1.61347597,3829.0,3828.9,2.64304481]
[1761897283487,2.71488865,3829.0,3828.9,2.64304481]
[1761897286982,3.16948865,3829.0,3828.9,2.64304481]
[1761897287186,3.16948865,3829.0,3828.9,1.91894481]
[1761897287383,3.16948865,3829.0,3828.9,0.94004481]
[1761897287686,2.06807597,3829.0,3828.9,2.55764481]
[1761897288084,0.08167597,3829.0,3828.9,2.55764481]
[1761897288284,0.68791206,3829.5,3829.4,1.6176]
[1761897288591,2.02997641,3829.5,3829.4,1.44529248]
[1761897288792,2.02997641,3829.5,3829.4,42.24529248]
[1761897289196,2.02997641,3829.5,3829.4,40.8]
[1761897289386,1.6431,3829.4,3829.3,4.65309248]
[1761897289587,2.82617703,3829.4,3829.3,4.65309248]
[1761897289894,2.82617703,3829.4,3829.3,45.45309248]
[1761897292394,2.82617703,3829.4,3829.3,44.5133]
[1761897292692,2.82617703,3829.4,3829.3,3.7133]
[1761897294489,2.82617703,3829.4,3829.3,0.5055]
[1761897296200,2.82617703,3829.4,3829.3,1.6176]
[1761897296397,2.82617703,3829.4,3829.3,0.9501]
[1761897296697,2.82617703,3829.4,3829.3,0.5055]
[1761897297799,1.6431,3829.3,3829.2,41.73979248]
[1761897297999,1.72476435,3829.3,3829.2,41.73979248]
[1761897299995,1.72476435,3829.3,3829.2,42.40729248]
[1761897300198,0.76736435,3829.3,3829.2,42.40729248]
[1761897300998,0.08166435,3829.3,3829.2,42.40729248]
[1761897301302,0.68791206,3829.5,3829.4,1.6176]
[1761897301499,0.76957778,3829.5,3829.4,1.6176]
[1761897301699,1.27237778,3829.5,3829.4,1.6176]
[1761897303301,1.57537778,3829.5,3829.4,1.6176]
[1761897304504,1.27237778,3829.5,3829.4,1.6176]
[1761897304908,0.76957778,3829.5,3829.4,1.6176]
[1761897305097,0.08387778,3829.5,3829.4,1.6176]
[1761897307323,0.08387778,3829.5,3829.4,2.55683639]
[1761897307513,0.00221206,3829.5,3829.4,3.02728872]
[1761897311127,0.00221206,3829.5,3829.4,1.6176]
[1761897320923,0.61571206,3829.5,3829.4,10.7546]
[1761897321522,0.61571206,3829.5,3829.4,10.0871]
[1761897321523,1.64691206,3829.5,3829.4,10.0871]
[1761897321731,1.009,3829.3,3829.2,51.85382621]
[1761897322025,2.49721268,3829.3,3829.2,51.85382621]
[1761897322220,2.49721268,3829.3,3829.2,50.4464]
[1761897322422,2.11041268,3829.3,3829.2,50.4464]
[1761897322925,1.009,3829.3,3829.2,51.85382621]
[1761897323122,0.25111206,3829.5,3829.4,0.3862]
[1761897323324,0.00221206,3829.5,3829.4,1.3198]
[1761897323720,1.01121206,3829.5,3829.4,1.3198]
[1761897323924,1.26011206,3829.5,3829.4,1.3198]
[1761897324325,1.64691206,3829.5,3829.4,1.3198]
[1761897324730,1.64691206,3829.5,3829.4,0.8094]
[1761897329229,1.64691206,3829.5,3829.4,2.21682621]
[1761897330537,1.64691206,3829.5,3829.4,2.72722621]
[1761897332636,1.64691206,3829.5,3829.4,5.93502621]
[1761897332837,1.64691206,3829.5,3829.4,4.0172]